Workbook

Sheet Калькулятор
B1: Расчет затрат на энергоносители
B3: Площадь помещения, кв. м | C3: 100
B5: Тип энергии | C5: Пропан-бутан, литр | E5: Природный газ, м3 | G5: Электричество, кВт*ч | I5: Диз. топливо, л | K5: Пеллеты, кг | M5: Дрова, м3
B7: Цена энергоносителя за единицу объема, руб. | C7: 24.4 | E7: 6.63 | G7: 5.38 | I7: 48 | K7: 11 | M7: 1500
B9: Выделяемая энергия на единицу объема, кВт*ч | C9: =База!N6 -> 7.085 | E9: =База!M11 -> 11.05555556 | G9: =База!E16 -> 1 | I9: =База!N23 -> 10.02263889 | K9: =База!O30 -> 5.2375 | M9: =База!O37 -> 2.909722222
B11: Стоимость 1 кВт*ч, руб. | C11: =C7/C9 -> 3.443895554 | E11: =E7/E9 -> 0.5996984925 | G11: =G7/G9 -> 5.38 | I11: =I7/I9 -> 4.789157879 | K11: =K7/K9 -> 2.100238663 | M11: =M7/M9 -> 515.5131265
B13: Расход энергоносителя в час | C13: =База!F42*$C$3 -> 1.4 | E13: =База!F43*C3 -> 1.1 | G13: =База!F44*C3 -> 7.5 | I13: =База!G45*C3 -> 0.9977412247 | K13: =База!F48*C3 -> 1.9086 | M13: =База!F51*C3 -> 0.008
B15: Расход энергоносителя в год | C15: =C13*24*90 -> 3024 | E15: =E13*24*90 -> 2376 | G15: =G13*24*90 -> 16200 | I15: =I13*24*90 -> 2155.121045 | K15: =K13*24*90 -> 4122.576 | M15: =M13*24*90 -> 17.28
B17: Стоимость 1 часа отопления, руб. | C17: =C13*C7 -> 34.16 | E17: =E13*E7 -> 7.293 | G17: =G13*G7 -> 40.35 | I17: =I13*I7 -> 47.89157879 | K17: =K13*K7 -> 20.9946 | M17: =M13*M7 -> 12
B19: Годовые затраты на отопление, руб. | C19: =C17*24*90 -> 73785.6 | E19: =E17*24*90 -> 15752.88 | G19: =G17*24*90 -> 87156 | I19: =I17*24*90 -> 103445.8102 | K19: =K17*24*90 -> 45348.336 | M19: =M17*24*90 -> 25920
B28: В листе БАЗА желтым выделен новый алгоритм расчета

Sheet База (hidden)
A2: Пропан-бутан
A4: Теплота сгорания | E4: 46.8 | F4: МДж/кг
A6: 1 | B6: л | C6: = | D6: =545/1000 -> 0.545 | E6: кг | F6: =E4*D6 -> 25.506 | G6: МДж/л | H6: =1000000*F6 -> 25506000 | I6: Дж | K6: 1кВт*ч= | L6: 3600000 | M6: Дж (3600 кДж) | N6: =H6/L6 -> 7.085 | O6: кВт*ч
A9: Природный газ
A11: Теплота сгорания | E11: 39.8 | F11: МДж/м3 | G11: =1000000*E11 -> 39800000 | H11: Дж | I11: 1кВт*ч | J11: = | K11: 3600000 | L11: Дж (3600 кДж) | M11: =G11/K11 -> 11.05555556 | N11: кВт*ч
A14: Электричество
A16: Теплота сгорания | E16: 1 | F16: кВт*ч
A19: Дизельное топливо
A21: Теплота сгорания | E21: 42.7 | F21: МДж/кг
A23: 1 | B23: л | C23: = | D23: =(0.83+0.86)/2 -> 0.845 | E23: кг | F23: =E21*D23 -> 36.0815 | G23: МДж/л | H23: =1000000*F23 -> 36081500 | I23: Дж | K23: 1кВт*ч= | L23: 3600000 | M23: Дж (3600 кДж) | N23: =H23/L23 -> 10.02263889 | O23: кВт*ч
A26: Пеллеты
A28: Теплота сгорания | E28: 4500 | F28: ккал/кг
A30: 1 | B30: кал. | C30: = | D30: 4.19 | E30: Дж | G30: =E28 -> 4500 | H30: ккал = | I30: =G30*1000*D30 -> 18855000 | J30: Дж | L30: 1кВт*ч = | M30: 3600000 | N30: Дж (3600 кДж) | O30: =I30/M30 -> 5.2375 | P30: кВт*ч
A33: Дрова
A35: Теплота сгорания | E35: 2500 | F35: ккал/кг
A37: 1 | B37: кал. | C37: = | D37: 4.19 | E37: Дж | G37: =E35 -> 2500 | H37: ккал = | I37: =G37*1000*D37 -> 10475000 | J37: Дж | L37: 1кВт*ч = | M37: 3600000 | N37: Дж (3600 кДж) | O37: =I37/M37 -> 2.909722222 | P37: кВт*ч
A40: Расход энергоносителя в час (эмпирические данные)
A42: Пропан-бутан | F42: 0.014 | G42: л
A43: Природный газ | F43: 0.011 | G43: м3
A44: Электричество | F44: 0.075 | G44: кВт
A45: Дизельное топливо | F45: =10/N23 -> 0.9977412247 | G45: =F45*G46/F46 -> 0.009977412247 | H45: кг
F46: 100 | G46: 1
A48: Пеллеты | F48: 0.019086 | G48: кг | I48: Общие эмпирические исходные данные. Для отопления дровами дома в 100 квадратных метров необходимо 100 кв. м.*100 Вт = 10 киловатт тепловой энергии в час. В сутки это будет 10 кВт/ч * 24 ч = 240 кВт; в месяц 240 кВт/день * 30 дней = 7200 киловатт, за весь отопительный период 240 кВт/день * 111 дней = 26 640 кВт.
A51: Дрова | F51: =0.0344/430 -> 8e-05 | G51: м3
A55: 1 киловатт - единица мощности | I55: Расчет загрузки электрического котла
I56: Принимаем: пиковая нагрузка на котел в день составляет 12ч (с 21.00 до 9.00), это 100%загрузка котла , остальные 12ч это 50% загрузка котла, тогда общая 100% загрузка котла будет 18ч. Тогда в таблице /расход энергоносителя в час(эмпирические данные)/(отмечено желтым) примем коэффициент не 0,1кВт как был при 100%загрузке постоянно, а 0,075.
A57: 1 киловатт-час - единица энергии
